bitfinex/quotes_BTCUSD_20250718
["timestamp","ask_amount","ask_price","bid_price","bid_amount"]
[1752801432926,0.03428483,120170.0,120160.0,0.25491465]
[1752801433157,0.03428476,120170.0,120160.0,0.25491465]
[1752801433403,0.04260616,120170.0,120160.0,0.25491465]
[1752801433865,0.02596343,120170.0,120160.0,0.25491465]
[1752801434108,0.02596343,120170.0,120160.0,0.34067427]
[1752801434320,0.03428483,120170.0,120160.0,0.34067427]
[1752801434573,0.03428483,120170.0,120160.0,0.25491465]
[1752801434574,0.02596343,120170.0,120160.0,0.25491465]
[1752801435008,0.001,120170.0,120160.0,0.64259872]
[1752801435216,0.01764204,120170.0,120160.0,0.79419872]
[1752801435832,0.0259633,120170.0,120160.0,0.79419872]
[1752801436292,0.0342847,120170.0,120160.0,0.79419872]
[1752801436516,0.0259633,120170.0,120160.0,0.79419872]
[1752801436731,0.00932092,120170.0,120160.0,0.85473339]
[1752801436948,0.01764197,120170.0,120160.0,0.85473339]
[1752801437147,0.00932092,120170.0,120160.0,0.46704932]
[1752801437410,0.0259631,120170.0,120160.0,0.85473339]
[1752801437622,0.03428436,120170.0,120160.0,0.46704932]
[1752801437848,0.04260576,120170.0,120160.0,0.85473339]
[1752801438052,0.04260576,120170.0,120160.0,0.46704932]
[1752801438256,0.03428436,120170.0,120160.0,0.46704932]
[1752801438508,0.02596303,120170.0,120160.0,0.46704932]
[1752801438957,0.02596296,120170.0,120160.0,0.85473339]
[1752801439219,0.02596296,120170.0,120160.0,0.46704932]
[1752801439492,0.05773298,120170.0,120160.0,0.85473339]
[1752801439700,0.05773291,120170.0,120160.0,0.85473339]
[1752801439925,0.05773339,120170.0,120160.0,0.85473339]
[1752801440138,0.22416482,120170.0,120160.0,0.39819311]
[1752801440351,0.22416482,120170.0,120160.0,0.40651493]
[1752801440778,0.03276995,120170.0,120160.0,0.40651486]
[1752801441202,0.03276995,120170.0,120160.0,0.79419893]
[1752801441413,0.03276995,120170.0,120160.0,0.87995855]
[1752801441619,0.04109087,120170.0,120160.0,0.87995855]
[1752801442260,0.04941227,120170.0,120160.0,0.87995855]
[1752801442470,0.04109087,120170.0,120160.0,0.87995855]
[1752801442696,0.0494122,120170.0,120160.0,0.87995855]
[1752801442991,0.0494122,120170.0,120160.0,0.82454424]
[1752801443426,0.04109087,120170.0,120160.0,0.82454424]
[1752801443854,0.01612757,120170.0,120160.0,0.8242949]
[1752801444068,0.01612757,120170.0,120160.0,1.34496466]
[1752801444069,0.001,120170.0,120160.0,1.34496466]
[1752801444351,0.001,120170.0,120160.0,1.4968762]
[1752801444602,0.003,120190.0,120180.0,0.56424851]
[1752801444820,0.003,120190.0,120180.0,1.21028864]
[1752801445053,0.003,120190.0,120180.0,0.72649888]
[1752801445307,0.003,120190.0,120180.0,0.72963888]
[1752801445541,0.003,120190.0,120180.0,0.88115888]
[1752801445942,0.003,120190.0,120180.0,0.88128401]
[1752801446643,0.003,120190.0,120180.0,0.72976401]
[1752801446869,0.003,120190.0,120180.0,0.88128401]
[1752801447083,0.02795943,120190.0,120180.0,0.54065389]
[1752801447291,0.02795929,120190.0,120180.0,0.94649473]
[1752801447501,0.003,120190.0,120180.0,0.94649473]
[1752801447713,0.003,120190.0,120180.0,0.94849473]
[1752801450347,0.0860238,120210.0,120200.0,0.23024691]
[1752801450348,0.003,120210.0,120200.0,0.23024691]
[1752801450571,0.003,120210.0,120200.0,1.24283496]
[1752801450807,0.003,120210.0,120200.0,1.29283496]
[1752801451252,0.003,120210.0,120200.0,1.31780196]
[1752801451484,0.003,120210.0,120200.0,1.33712568]
[1752801451723,0.003,120210.0,120200.0,0.95326857]
[1752801451953,0.003,120210.0,120200.0,1.19102862]
[1752801452175,0.003,120230.0,120220.0,0.61971512]
[1752801452396,0.003,120230.0,120220.0,1.28117358]
[1752801452623,0.003,120230.0,120220.0,1.15724857]
[1752801452856,0.003,120230.0,120220.0,1.30864857]
[1752801453294,0.08473813,120250.0,120240.0,0.19128325]
[1752801453295,0.01835084,120250.0,120240.0,0.19128325]
[1752801453506,0.01835084,120250.0,120240.0,1.66232892]
[1752801453724,0.01835084,120250.0,120240.0,1.2990872]
[1752801453940,0.01835084,120250.0,120240.0,1.29808887]
[1752801454182,0.01835084,120250.0,120240.0,1.14668887]
[1752801454396,0.01835084,120250.0,120240.0,1.05030358]
[1752801454612,0.01835084,120250.0,120240.0,1.20170358]
[1752801455086,0.01835084,120250.0,120240.0,1.05330358]
[1752801455301,0.10334917,120250.0,120240.0,0.43316353]
[1752801455521,0.10334917,120250.0,120240.0,0.51892315]
[1752801455522,0.11998063,120250.0,120240.0,0.51892315]
[1752801455733,0.11998063,120250.0,120240.0,0.9081232]
[1752801455951,0.1282965,120250.0,120240.0,0.66264737]
[1752801456167,0.28630162,120250.0,120240.0,0.25681427]
[1752801456386,0.28630162,120250.0,120240.0,0.005]
[1752801456387,0.28736101,120250.0,120240.0,0.005]
[1752801456605,0.28736101,120250.0,120240.0,0.15636]
[1752801456908,0.30716101,120250.0,120240.0,0.005]
[1752801457119,0.66736101,120250.0,120240.0,0.005]
[1752801457574,0.66736101,120250.0,120240.0,0.002]
[1752801457997,0.66736101,120250.0,120240.0,0.004]
[1752801458234,0.66736101,120250.0,120240.0,0.002]
[1752801458468,0.19750789,120240.0,120230.0,0.32602522]
[1752801458702,0.19750789,120240.0,120230.0,0.25136307]
[1752801458703,0.03315348,120240.0,120230.0,0.25136307]
[1752801458916,0.02483692,120240.0,120230.0,0.35093655]
[1752801459128,0.03315313,120240.0,120230.0,0.35093655]
[1752801459349,0.0331532,120240.0,120230.0,0.35093655]
[1752801459567,0.04146969,120240.0,120230.0,0.35093655]
[1752801459784,0.04978638,120240.0,120230.0,0.35093669]
[1752801460009,0.04978638,120240.0,120230.0,0.35925359]
[1752801460438,0.04146969,120240.0,120230.0,0.35925359]
[1752801460696,0.04978625,120240.0,120230.0,0.35925359]
[1752801460921,0.04146962,120240.0,120230.0,0.35925359]
[1752801461133,0.0331532,120240.0,120230.0,0.35925359]
[1752801461351,0.04146962,120240.0,120230.0,0.35925359]
[1752801461555,0.04978618,120240.0,120230.0,0.35925359]
[1752801461762,0.0331532,120240.0,120230.0,0.35925359]
[1752801461983,0.0266665,120250.0,120240.0,0.19128325]
[1752801462199,0.04120714,120250.0,120240.0,0.19325325]
[1752801462412,0.05981825,120250.0,120240.0,0.19325325]
[1752801462650,0.22613931,120250.0,120240.0,0.17465068]
[1752801462851,0.22928931,120250.0,120240.0,0.19128373]
[1752801463048,0.0629686,120250.0,120240.0,0.20791629]
[1752801463311,0.0546528,120250.0,120240.0,0.35919629]
[1752801463497,0.03487169,120250.0,120240.0,0.20988629]
[1752801463710,0.03487169,120250.0,120240.0,0.44981657]
[1752801463711,0.03498181,120250.0,120240.0,0.44981657]
[1752801463924,0.2282295,120250.0,120240.0,0.43836036]
[1752801464056,0.05359396,120250.0,120240.0,0.43836029]
[1752801464287,0.04527796,120250.0,120240.0,0.4466765]
[1752801464487,0.05227796,120250.0,120240.0,0.4466765]
[1752801464702,0.07390989,120250.0,120240.0,0.4466765]
[1752801464913,0.05727796,120250.0,120240.0,0.4466765]
[1752801465127,0.23191412,120250.0,120240.0,0.4466765]
[1752801465370,0.23191412,120250.0,120240.0,0.26213096]
[1752801465571,0.23191412,120250.0,120240.0,0.15124]
[1752801465572,0.23297372,120250.0,120240.0,0.15124]
[1752801466508,0.23297372,120250.0,120240.0,0.32589062]
[1752801466957,0.23297372,120250.0,120240.0,0.33420704]
[1752801467601,0.23297372,120250.0,120240.0,0.33387267]
[1752801467808,0.22465785,120250.0,120240.0,0.32555625]
[1752801467990,0.21634185,120250.0,120240.0,0.32555625]
[1752801468232,0.05002169,120250.0,120240.0,0.3421893]
[1752801468453,0.03035084,120250.0,120240.0,0.73972854]
[1752801469331,0.01835084,120250.0,120240.0,0.89088854]
[1752801469547,0.01835084,120250.0,120240.0,0.89488854]
[1752801469801,0.01835084,120250.0,120240.0,0.90157454]
[1752801470005,0.01835084,120250.0,120240.0,0.89757454]
[1752801470215,0.01835084,120250.0,120240.0,0.89957454]
[1752801470400,0.01835084,120250.0,120240.0,0.90157454]
[1752801471505,0.01835084,120250.0,120240.0,0.74707154]
[1752801471729,0.01835084,120250.0,120240.0,0.90153454]
[1752801472131,0.01835084,120250.0,120240.0,0.89484854]
[1752801472639,0.01835084,120250.0,120240.0,0.50564849]
[1752801473913,0.03498181,120250.0,120240.0,0.34343658]
[1752801474126,0.05366389,120250.0,120240.0,0.08951028]
[1752801474337,0.2064828,120250.0,120240.0,0.08951028]
[1752801474548,0.27287009,120250.0,120240.0,0.15508]
[1752801474755,0.27287009,120250.0,120240.0,0.32973068]
[1752801474756,0.29267009,120250.0,120240.0,0.32973068]
[1752801474961,0.29267009,120250.0,120240.0,0.33604724]
[1752801475401,0.27287009,120250.0,120240.0,0.34532366]
[1752801475605,0.27287009,120250.0,120240.0,0.35364001]
[1752801475806,0.27287009,120250.0,120240.0,0.34532366]
[1752801476057,0.04847837,120250.0,120240.0,0.35164001]
[1752801476279,0.21479853,120250.0,120240.0,0.35995629]
[1752801476496,0.04016195,120250.0,120240.0,0.36095581]
[1752801476719,0.04016181,120250.0,120240.0,0.36095581]
[1752801476928,0.04534754,120250.0,120240.0,0.36095581]
[1752801477135,0.05366334,120250.0,120240.0,0.35995581]
[1752801477359,0.04534754,120250.0,120240.0,0.20791581]
[1752801477598,0.03703181,120250.0,120240.0,0.36106581]
[1752801477811,0.0536632,120250.0,120240.0,0.36106581]
[1752801478021,0.22829923,120250.0,120240.0,0.36106581]
[1752801478241,0.22829978,120250.0,120240.0,0.3527096]
[1752801478461,0.05679362,120250.0,120240.0,0.20791581]
[1752801478702,0.23142978,120250.0,120240.0,0.3505996]
[1752801479108,0.05679362,120250.0,120240.0,0.19258182]
[1752801479347,0.23142971,120250.0,120240.0,0.3505996]
[1752801479559,0.2147988,120250.0,120240.0,0.18296731]
[1752801480029,0.2147988,120250.0,120240.0,0.3422438]
[1752801480267,0.2147988,120250.0,120240.0,0.34224387]
[1752801480483,0.20648293,120250.0,120240.0,0.20791664]
[1752801480698,0.04847796,120250.0,120240.0,0.41088002]
[1752801480917,0.02040084,120250.0,120240.0,0.41299002]
[1752801481138,0.03289169,120250.0,120240.0,0.93033035]
[1752801481367,0.01835084,120250.0,120240.0,0.77937035]
[1752801481606,0.01835084,120250.0,120240.0,0.93033035]
[1752801482322,0.01835084,120250.0,120240.0,0.87832649]
[1752801483035,0.01835084,120250.0,120240.0,0.72736649]
[1752801483262,0.01835084,120250.0,120240.0,0.87828649]
[1752801483492,0.01835084,120250.0,120240.0,0.49108644]
[1752801483714,0.01835084,120250.0,120240.0,0.88028649]
[1752801483946,0.01835084,120250.0,120240.0,0.34016644]
[1752801484182,0.01835084,120250.0,120240.0,0.88028649]
[1752801484419,0.01835084,120250.0,120240.0,0.49108644]
[1752801484664,0.01835084,120250.0,120240.0,0.88028649]
[1752801485139,0.01835084,120250.0,120240.0,0.88228649]
[1752801485572,0.01835084,120250.0,120240.0,0.88028649]
[1752801485970,0.01835084,120250.0,120240.0,0.88228649]
[1752801486222,0.01835084,120250.0,120240.0,0.73136649]
[1752801486474,0.01835084,120250.0,120240.0,0.88224649]
[1752801486683,0.01835084,120250.0,120240.0,0.88024649]
[1752801488272,0.01835084,120250.0,120240.0,0.73136649]
[1752801488273,0.02666636,120250.0,120240.0,0.73136649]
[1752801488493,0.01835084,120250.0,120240.0,0.49300644]
[1752801488700,0.01835084,120250.0,120240.0,0.73136649]
[1752801488909,0.01835084,120250.0,120240.0,0.88220649]
[1752801489162,0.01835084,120250.0,120240.0,0.73136649]
[1752801489374,0.01835084,120250.0,120240.0,0.88220649]
[1752801490130,0.01835084,120250.0,120240.0,0.73136649]
[1752801490349,0.01835084,120250.0,120240.0,0.34216644]
[1752801490553,0.01835084,120250.0,120240.0,0.88216649]
[1752801491309,0.01835084,120250.0,120240.0,0.49296644]
[1752801491514,0.01835084,120250.0,120240.0,0.88216649]
[1752801493099,0.01818184,120250.0,120240.0,0.88216649]
[1752801493528,0.01818184,120250.0,120240.0,0.88212649]
[1752801493741,0.01818184,120250.0,120240.0,1.15712611]
[1752801493995,0.01818184,120250.0,120240.0,1.30788611]
[1752801494189,0.01818184,120250.0,120240.0,0.91868606]
[1752801494397,0.01818184,120250.0,120240.0,1.22212649]
[1752801494610,0.01818184,120250.0,120240.0,0.32553395]
[1752801494802,0.01818184,120250.0,120240.0,0.29953658]
[1752801494803,0.03686309,120250.0,120240.0,0.29953658]
[1752801495264,0.04517902,120250.0,120240.0,0.45025658]
[1752801495460,0.03686309,120250.0,120240.0,0.45025658]
[1752801495971,0.03686309,120250.0,120240.0,0.45025637]
[1752801495972,0.21981512,120250.0,120240.0,0.45025637]
[1752801496198,0.02854736,120250.0,120240.0,0.53601564]
[1752801496320,0.02854729,120250.0,120240.0,0.45025602]
[1752801496533,0.03686288,120250.0,120240.0,0.45025602]
[1752801496741,0.05349441,120250.0,120240.0,0.45021602]
[1752801496953,0.71524206,120250.0,120240.0,0.004]
[1752801497165,0.74169886,120250.0,120240.0,0.004]
[1752801497366,1.23955991,120250.0,120240.0,0.004]
[1752801497566,1.03989122,120250.0,120240.0,0.004]
[1752801497820,1.2760815,120250.0,120240.0,0.004]
[1752801497984,1.2760815,120250.0,120220.0,0.00012513]
[1752801497985,0.56108212,120230.0,120220.0,0.00012513]
[1752801498156,0.57767297,120230.0,120220.0,0.00012513]
[1752801498359,1.03639031,120230.0,120220.0,0.00012513]
[1752801498572,1.18707031,120230.0,120220.0,0.00012513]
[1752801499327,0.73148297,120230.0,120220.0,0.00012513]
[1752801499566,1.13568302,120230.0,120220.0,0.00112513]
[1752801499803,0.74648297,120230.0,120220.0,0.00112513]
[1752801500029,0.74644297,120230.0,120220.0,0.00112513]
[1752801500948,0.75744297,120230.0,120220.0,0.00212513]
[1752801501928,0.75748297,120230.0,120220.0,0.00212513]
[1752801502860,0.75740297,120230.0,120220.0,0.00212513]
[1752801504595,0.60680297,120230.0,120220.0,0.00212513]
[1752801504806,0.75740297,120230.0,120220.0,0.00212513]
[1752801505459,0.60680297,120230.0,120220.0,0.00212513]
[1752801505675,0.75736297,120230.0,120220.0,0.00212513]
[1752801506964,0.75740297,120230.0,120220.0,0.00212513]
[1752801507629,0.60680297,120230.0,120220.0,0.00212513]
[1752801507894,0.75736297,120230.0,120220.0,0.00212513]
[1752801508685,0.69231325,120230.0,120220.0,0.00212513]
[1752801508919,1.2320333,120230.0,120220.0,0.00212513]
[1752801509139,1.2570113,120230.0,120220.0,0.00212513]
[1752801509363,0.86781125,120230.0,120220.0,0.00212513]
[1752801510270,0.71729125,120230.0,120220.0,0.00212513]
[1752801510492,0.84279325,120230.0,120220.0,0.00212513]
[1752801510722,0.69231325,120230.0,120220.0,0.00212513]
[1752801511025,0.84279325,120230.0,120220.0,0.00212513]
[1752801511463,1.2319933,120230.0,120220.0,0.00212513]
[1752801511718,0.84279325,120230.0,120220.0,0.00212513]
[1752801511934,1.2319933,120230.0,120220.0,0.00212513]
[1752801512177,1.0815133,120230.0,120220.0,0.00212513]
[1752801512415,1.2319933,120230.0,120220.0,0.00212513]
[1752801515026,0.84279325,120230.0,120220.0,0.00212513]
[1752801515241,1.2319933,120230.0,120220.0,0.00212513]
[1752801515466,0.84279325,120230.0,120220.0,0.00212513]
[1752801516558,1.2319933,120230.0,120220.0,0.00212513]
[1752801516769,0.84279325,120230.0,120220.0,0.00212513]
[1752801516997,1.2319933,120230.0,120220.0,0.00212513]
[1752801517704,1.2319933,120230.0,120220.0,0.00112925]
[1752801518557,0.84279325,120230.0,120220.0,0.00112925]
[1752801521018,0.20898212,120230.0,120220.0,0.00629925]
[1752801521238,0.026,120230.0,120220.0,0.71172465]
[1752801521450,0.03431683,120230.0,120220.0,0.71172465]
[1752801521669,0.026,120230.0,120220.0,0.71172465]
[1752801521884,0.026,120230.0,120220.0,0.79748427]
[1752801522357,0.026,120230.0,120220.0,0.94672427]
[1752801522358,0.015,120230.0,120220.0,0.94672427]
[1752801522598,0.05450843,120250.0,120240.0,0.23278325]
[1752801522808,0.06282457,120250.0,120240.0,0.32044353]
[1752801523015,0.22914473,120250.0,120240.0,0.32044367]
[1752801523232,0.22914473,120250.0,120240.0,0.04667]
[1752801523451,0.20419796,120250.0,120240.0,0.21300399]
[1752801523663,0.20419796,120250.0,120240.0,0.04667]
[1752801523893,0.20419796,120250.0,120240.0,0.22132062]
[1752801524124,0.19588196,120250.0,120240.0,0.22132062]
[1752801524354,0.19588196,120250.0,120240.0,0.04667]
[1752801524576,0.19588196,120250.0,120240.0,0.22963717]
[1752801524797,0.19588196,120250.0,120240.0,0.22132068]
[1752801525005,0.21251376,120250.0,120240.0,0.24627008]
[1752801525225,0.36271376,120250.0,120240.0,0.24627008]
[1752801525443,0.04619291,120250.0,120240.0,0.72929662]
[1752801525660,0.05450822,120250.0,120240.0,0.72929662]
[1752801526087,0.03787718,120250.0,120240.0,0.72929662]
[1752801526295,0.0305618,120250.0,120240.0,0.77537373]
[1752801526744,0.0305618,120250.0,120240.0,0.38617368]
[1752801526956,0.0305618,120250.0,120240.0,0.72929662]
[1752801527208,0.04719284,120250.0,120240.0,0.34009657]
[1752801527420,0.0305618,120250.0,120240.0,0.72929662]
[1752801527646,0.0305618,120250.0,120240.0,0.34009657]
[1752801527826,0.05550878,120250.0,120240.0,0.34009657]
[1752801528062,0.05550871,120250.0,120240.0,0.34009657]
[1752801528231,0.04719291,120250.0,120240.0,0.34009657]
[1752801528442,0.0305618,120250.0,120240.0,0.34009657]
[1752801528614,0.04719291,120250.0,120240.0,0.34009657]
[1752801528831,0.0305618,120250.0,120240.0,0.34009657]
[1752801529029,0.04719291,120250.0,120240.0,0.34009657]
[1752801529200,0.03887725,120250.0,120240.0,0.34009657]
[1752801529407,0.04719277,120250.0,120240.0,0.34009657]
[1752801529693,0.05550836,120250.0,120240.0,0.34009657]
[1752801529897,0.0305618,120250.0,120240.0,0.34009657]
[1752801530108,0.0305618,120250.0,120240.0,0.72929662]
[1752801530312,0.0305618,120250.0,120240.0,0.87937662]
[1752801530735,0.0305618,120250.0,120240.0,0.49017657]
[1752801530897,0.0305618,120250.0,120240.0,0.87937662]
[1752801532139,0.0305618,120250.0,120240.0,0.49017657]
[1752801532369,0.0305618,120250.0,120240.0,0.87937662]
[1752801532607,0.0305618,120250.0,120240.0,0.49017657]
[1752801532816,0.0305618,120250.0,120240.0,0.72929662]
[1752801533009,0.0305618,120250.0,120240.0,0.87929662]
[1752801533398,0.0305618,120250.0,120240.0,0.72929662]
[1752801533627,0.0305618,120250.0,120240.0,0.87925662]
[1752801533848,0.0305618,120250.0,120240.0,0.72929662]
[1752801534534,0.0305618,120250.0,120240.0,0.87925662]
[1752801534750,0.0305618,120250.0,120240.0,0.72929662]
[1752801534957,0.03887725,120250.0,120240.0,0.34009657]
[1752801535164,0.03887732,120250.0,120240.0,0.49005657]
[1752801535365,0.0305618,120250.0,120240.0,0.49005657]
[1752801535778,0.0305618,120250.0,120240.0,0.87925662]
[1752801536008,0.0305618,120250.0,120240.0,0.31514759]
[1752801536144,0.03887725,120250.0,120240.0,0.48170022]
[1752801536551,0.03887725,120250.0,120240.0,0.33178022]
[1752801536778,0.05550864,120250.0,120240.0,0.33178022]
[1752801536978,0.04719284,120250.0,120240.0,0.33178022]
[1752801537182,0.03887725,120250.0,120240.0,0.33178022]
[1752801537318,0.0305618,120250.0,120240.0,0.33178022]
[1752801537685,0.03887732,120250.0,120240.0,0.33178022]
[1752801538409,0.0305618,120250.0,120240.0,0.33178022]
[1752801538627,0.0305618,120250.0,120240.0,0.72098027]
[1752801539048,0.0305618,120250.0,120240.0,0.80673989]
[1752801539257,0.0305618,120250.0,120240.0,0.95657989]
[1752801539659,0.0305618,120250.0,120240.0,0.87082027]
[1752801540076,0.0305618,120250.0,120240.0,0.48162022]
[1752801540276,0.0305618,120250.0,120240.0,0.87082027]
[1752801540475,0.0305618,120250.0,120240.0,0.72098027]
[1752801540680,0.0305618,120250.0,120240.0,0.87082027]
[1752801540886,0.0305618,120250.0,120240.0,0.87078027]
[1752801541257,0.0305618,120250.0,120240.0,0.89217278]
[1752801541465,0.0305618,120250.0,120240.0,1.13157283]
[1752801541729,0.0305618,120250.0,120240.0,0.89217278]
[1752801542276,0.003831,120250.0,120240.0,0.74237278]
[1752801542541,0.002831,120250.0,120240.0,0.72098027]
[1752801542748,0.02495112,120230.0,120220.0,0.23431479]
[1752801542965,0.02495105,120230.0,120220.0,0.3217957]
[1752801543167,0.00831683,120230.0,120220.0,0.47987329]
[1752801543378,0.26389518,120240.0,120230.0,0.1829824]
[1752801543606,0.01663263,120240.0,120230.0,0.29029669]
[1752801543816,0.40002512,120250.0,120240.0,0.19328318]
[1752801544017,0.41665671,120250.0,120240.0,0.27564725]
[1752801544244,0.40834078,120250.0,120240.0,0.27564725]
[1752801544458,0.56012009,120250.0,120240.0,0.27364732]
[1752801544675,0.40416586,120250.0,120240.0,0.29859623]
[1752801544917,0.05379951,120250.0,120240.0,0.29859623]
[1752801545116,0.2284356,120250.0,120240.0,0.28196374]
[1752801545326,0.21385463,120250.0,120240.0,0.2601609]
[1752801545560,0.21385463,120250.0,120240.0,0.26847746]
[1752801545776,0.2055389,120250.0,120240.0,0.08551028]
[1752801545989,0.21176382,120250.0,120230.0,0.1944993]
[1752801546230,0.19128353,120240.0,120230.0,0.2633755]
[1752801546449,0.19334353,120240.0,120230.0,0.27680993]
[1752801546664,0.01869263,120240.0,120230.0,0.29344394]
[1752801546892,0.2016598,120240.0,120230.0,0.28709704]
[1752801547111,0.19334359,120240.0,120230.0,0.29861408]
[1752801547327,0.19334359,120240.0,120220.0,0.18299679]
[1752801547328,0.19125153,120240.0,120220.0,0.18299679]
[1752801547586,0.0166338,120230.0,120220.0,0.42654487]
[1752801547802,0.00831614,120240.0,120230.0,0.05693401]
[1752801548013,0.19959973,120240.0,120230.0,0.27046254]
[1752801548304,0.19959973,120240.0,120230.0,0.28197958]
[1752801548551,0.19128359,120240.0,120230.0,0.27366261]
[1752801548770,0.19228359,120240.0,120230.0,0.28197972]
[1752801548976,0.01763291,120240.0,120230.0,0.29029669]
[1752801549181,0.01763291,120240.0,120230.0,0.28197972]
[1752801549409,0.01136635,120240.0,120230.0,0.29344366]
[1752801549634,0.02799898,120240.0,120230.0,0.29541366]
[1752801549855,0.01968256,120240.0,120230.0,0.29541366]
[1752801550120,0.0259487,120240.0,120230.0,0.29861366]
[1752801550342,0.001,120240.0,120230.0,0.38746119]
[1752801550556,0.001,120240.0,120230.0,0.48859366]
[1752801551006,0.001,120240.0,120230.0,0.33891366]
[1752801551219,0.001,120240.0,120230.0,0.48855366]
[1752801551863,0.001,120240.0,120230.0,0.33891366]
[1752801552092,0.001,120240.0,120230.0,0.90907045]
[1752801552309,0.0004922,120240.0,120230.0,1.1486305]
[1752801552530,0.03183947,120280.0,120270.0,0.19123553]
[1752801552791,0.01662682,120280.0,120270.0,0.27871581]
[1752801552999,0.11735401,120280.0,120270.0,0.28191581]
[1752801553213,0.27423409,120280.0,120270.0,0.27360167]
[1752801553435,0.27214812,120280.0,120270.0,0.09068028]
[1752801553649,0.26588447,120280.0,120270.0,0.09068028]
[1752801553859,0.0249449,120260.0,120250.0,0.22822832]
[1752801554111,0.0249449,120260.0,120250.0,0.26000044]
[1752801554112,0.18499681,120260.0,120250.0,0.26000044]
[1752801554336,0.19953766,120260.0,120250.0,0.26831637]
[1752801554789,0.19953766,120260.0,120250.0,0.27663217]
[1752801555003,0.19953766,120260.0,120250.0,0.28494783]
[1752801555213,0.03323099,120260.0,120250.0,0.36556708]
[1752801555433,0.02285561,120260.0,120250.0,0.28770342]
[1752801555656,0.03948575,120260.0,120250.0,0.28770342]
[1752801556091,0.03948554,120260.0,120250.0,0.28770342]
[1752801556301,0.03948548,120260.0,120250.0,0.43726342]
[1752801556520,0.04780065,120260.0,120250.0,0.49985988]
[1752801556735,0.04780058,120260.0,120250.0,0.49985988]
[1752801556952,0.03948548,120260.0,120250.0,0.51945988]
[1752801557385,0.02285554,120260.0,120250.0,0.51945988]
[1752801557603,0.03117037,120260.0,120250.0,0.53935988]
[1752801558053,0.59608465,120280.0,120260.0,0.1829362]
[1752801558264,0.20310882,120280.0,120270.0,0.18489153]
[1752801558483,0.3609424,120280.0,120270.0,0.00197]
[1752801558706,0.35262882,120280.0,120270.0,0.00197]
[1752801559171,0.1662925,120270.0,120260.0,0.08871028]
[1752801559383,0.1684525,120270.0,120260.0,0.23499028]
[1752801559602,0.1684525,120270.0,120260.0,0.23696028]
[1752801559821,0.1662925,120270.0,120260.0,0.23696028]
[1752801560056,0.1662925,120270.0,120260.0,0.15927518]
[1752801560057,0.18914783,120270.0,120260.0,0.15927518]
[1752801560276,0.18914783,120270.0,120260.0,0.46467598]
[1752801560500,0.03116974,120270.0,120260.0,0.47091226]
[1752801560725,0.05611236,120270.0,120260.0,0.4792273]
[1752801560939,0.04779836,120270.0,120260.0,0.33806186]
[1752801561157,0.03216933,120270.0,120260.0,0.48750179]
[1752801561377,0.001,120270.0,120260.0,0.40344394]
[1752801561598,0.002,120270.0,120260.0,0.55288394]
[1752801561818,0.002,120270.0,120260.0,0.40344394]
[1752801562033,0.002,120270.0,120260.0,0.55288394]
[1752801562681,0.002,120270.0,120260.0,0.48750179]
[1752801562898,0.002,120270.0,120260.0,0.33806179]
[1752801563145,0.002,120270.0,120260.0,0.48746179]
[1752801563364,0.010314,120270.0,120260.0,0.33838411]
[1752801563577,0.002,120270.0,120260.0,0.48778411]
[1752801563824,0.002,120270.0,120260.0,0.55319449]
[1752801564038,0.002,120270.0,120260.0,0.55315449]
[1752801564484,0.002,120270.0,120260.0,0.40379449]
[1752801564704,0.002,120270.0,120260.0,0.55315449]
[1752801565374,0.001,120270.0,120260.0,0.55315449]
[1752801565828,0.00931407,120270.0,120260.0,0.40379449]
[1752801566038,0.00831407,120270.0,120260.0,0.48774411]
[1752801566246,0.02843965,120280.0,120270.0,0.18292125]
[1752801566465,0.03675351,120280.0,120270.0,0.28188567]
[1752801566688,0.04506744,120280.0,120270.0,0.27357153]
[1752801566906,0.02843965,120280.0,120270.0,0.29019988]
[1752801567164,0.03675351,120280.0,120270.0,0.29019988]
[1752801567396,0.03116933,120270.0,120260.0,0.1915741]
[1752801567645,0.01281269,120280.0,120270.0,0.19123553]
[1752801567882,0.21025959,120280.0,120270.0,0.18495139]
[1752801568115,0.04398091,120280.0,120270.0,0.3456956]
[1752801568341,0.03666664,120280.0,120270.0,0.20468974]
[1752801568581,0.21957297,120280.0,120270.0,0.33738139]
[1752801568820,0.21957297,120280.0,120270.0,0.33427153]
[1752801568821,0.21339966,120280.0,120270.0,0.33427153]
[1752801569068,0.21239966,120280.0,120270.0,0.19326594]
[1752801569337,0.19577243,120280.0,120260.0,0.26356376]
[1752801569583,0.60155795,120270.0,120260.0,0.00032232]
[1752801569813,0.60369795,120270.0,120260.0,0.00032232]
[1752801570489,0.60369795,120270.0,120260.0,0.16662865]
[1752801570714,0.1944979,120270.0,120260.0,0.17494389]
[1752801570931,0.1944979,120270.0,120260.0,0.00032232]
[1752801571149,0.3437379,120270.0,120260.0,0.00032232]
[1752801571891,0.1891479,120270.0,120260.0,0.00235232]
[1752801572122,0.20791638,120270.0,120260.0,0.17697382]
[1752801572359,0.20791638,120270.0,120260.0,0.18528892]
[1752801572578,0.03330933,120270.0,120260.0,0.20191879]
[1752801572789,0.21623093,120270.0,120260.0,0.20191893]
[1752801573258,0.19960245,120270.0,120260.0,0.17697389]
[1752801573480,0.18618335,120270.0,120260.0,0.16662865]
[1752801573698,0.18618335,120270.0,120260.0,0.17494389]
[1752801573918,0.18618335,120270.0,120260.0,0.18325899]
[1752801574134,0.18618335,120270.0,120260.0,0.00032232]
[1752801574578,0.5753834,120270.0,120260.0,0.00032232]
[1752801574795,0.7448834,120270.0,120260.0,0.00032232]
[1752801575007,0.35568335,120270.0,120260.0,0.00032232]
[1752801575234,0.7448834,120270.0,120260.0,0.00032232]
[1752801575456,0.35568335,120270.0,120260.0,0.00032232]
[1752801575950,0.35768335,120270.0,120260.0,0.00032232]
[1752801577027,0.7470834,120270.0,120260.0,0.00032232]
[1752801577244,0.20868335,120270.0,120260.0,0.00032232]
[1752801577474,0.35784335,120270.0,120260.0,0.00032232]
[1752801578131,0.20868335,120270.0,120260.0,0.00032232]
[1752801578382,0.56226611,120270.0,120260.0,0.00032232]
[1752801578590,0.71142611,120270.0,120260.0,0.00032232]
[1752801579040,0.56226611,120270.0,120260.0,0.00032232]
[1752801579270,0.35784335,120270.0,120260.0,0.00032232]
[1752801579506,0.72952611,120270.0,120260.0,0.00032232]
[1752801579945,1.06952611,120270.0,120260.0,0.00032232]
[1752801580163,1.15499639,120270.0,120260.0,0.00032232]
[1752801580408,1.00587639,120270.0,120260.0,0.00032232]
[1752801580618,1.15499639,120270.0,120260.0,0.00032232]
[1752801580835,1.00587639,120270.0,120260.0,0.00032232]
[1752801581054,1.15499639,120270.0,120260.0,0.00032232]
[1752801581265,1.15399639,120270.0,120260.0,0.00032232]
[1752801581486,1.16737526,120270.0,120260.0,0.00032232]
[1752801581703,0.81541363,120270.0,120260.0,0.00132232]
[1752801581919,1.01987639,120270.0,120260.0,0.00132232]
[1752801582129,1.17599639,120270.0,120260.0,0.00132232]
[1752801582806,1.16899639,120270.0,120260.0,0.00132232]
[1752801583027,1.16899639,120270.0,120260.0,0.00076378]